Cogmind - Beta 16 @@@ ROGUE MODE // 2025.10.23 @ 11:11:44 Player: k1ll3rb0t Result: Destroyed by S-27 Virus with Autogun Performance ------------- Evolutions (6) 3000 Regions Visited (12) 2400 Robots Destroyed (149) 745 Value Destroyed (5810) 5810 Prototype IDs (10) 200 Alien Tech Used (0) 0 Bonus (967) 967 TOTAL SCORE: 13122 Bonus ------- High Alert Combat Kills 38 Follower Combat Kills 729 Entered Garrisons 200 Cogmind --------- Core Integrity 0/1150 Matter 93/300 Energy 149/150 System Corruption 23% Temperature Cool (4) Movement Hovering (77) Location -4/Factory Parts ------- > --- POWER (2) -------- Micro Fission Core > --- PROPULSION (6) --- Combat Airjet Combat Airjet > --- UTILITY (7) ------ Advanced Sensor Array Advanced Sensor Array Advanced Signal Interpreter Improved Melee Analysis Suite Graphene Brace Advanced Hacking Suite > --- WEAPON (4) ------- Light Antimatter Cannon > --- INVENTORY (5) ---- High-capacity Matter Pod (0) Peak State ------------ > --- POWER ------------ Micro Fission Core > --- PROPULSION ------- Improved Treads Medium Treads Heavy Treads Centrium Heavy Treads > --- UTILITY ---------- Huge Storage Unit Advanced Signal Interpreter Improved Melee Analysis Suite Centrium Medium Armor Plating Centrium Medium Armor Plating Improved Force Field Advanced Hacking Suite > --- WEAPON ----------- Micro-nuke Launcher Heavy Flail Heavy Flail Great Maul > --- INVENTORY -------- Medium Treads Medium Treads Improved Medium Treads Energy Well Energy Well High-capacity Matter Pod Advanced Sensor Array Improved Melee Analysis Suite Improved Melee Analysis Suite Improved Actuator Array Improved Actuator Array Centrium Medium Armor Plating Graphene Brace Force Field Advanced Hacking Suite Drone Bay Mini Drone Bay Advanced Plasma Cannon Improved Plasma Cutter Maul Phasing Sabre [Rating: 109] Favorites ----------- Power Heavy Ion Engine Engine Heavy Ion Engine Power Core Neutrino Core Reactor Particle Reactor Propulsion Light Treads Treads Light Treads Leg Aluminum Leg Hover Unit Combat Airjet Utility Huge Storage Unit Device Drone Bay Storage Huge Storage Unit Processor Improved Melee Analysis Suite Hackware Hacking Suite Protection Centrium Medium Armor Plating Weapon Heavy Mace Energy Cannon Phase Cannon Ballistic Gun Light Assault Rifle Ballistic Cannon Light Antimatter Cannon Launcher Mini Grenade Launcher Special Weapon Improved Plasma Cutter Impact Weapon Heavy Mace Slashing Weapon Phasing Sabre Build | -11 -10 -9 -9 -9 -9 -9 -6 -5 -5 -5 -5 -4 ------- Run | Yrd Mat Mat Sto Gar Rec Scr Fac Fac Ext Cet Arc Fac Slots Evolved 12 | . . 2 . . . . 6 2 . . . 2 Power 1 | . . . . . . . . . . . . 1 Propulsion 4 | . . 2 . . . . 2 . . . . . Utility 5 | . . . . . . . 2 2 . . . 1 Weapon 2 | . . . . . . . 2 . . . . . Parts Attached 141 | 7 14 18 11 5 2 3 15 12 23 3 4 24 Power 18 | 1 1 4 2 . . 1 . . 5 1 1 2 Engine 12 | 1 1 4 2 . . 1 . . 2 . . 1 Core 3 | . . . . . . . . . 2 . . 1 Reactor 3 | . . . . . . . . . 1 1 1 . Propulsion 50 | 2 7 5 2 3 2 1 6 2 11 1 3 5 Treads 39 | . 2 5 2 3 2 1 6 2 11 1 3 1 Leg 7 | 2 5 . . . . . . . . . . . Wheel . | . . . . . . . . . . . . . Hover 4 | . . . . . . . . . . . . 4 Flight . | . . . . . . . . . . . . . Utility 44 | 2 4 3 2 1 . 1 7 5 5 1 . 13 Device 20 | 1 2 . 2 1 . . 3 2 3 . . 6 Storage 7 | 1 2 1 . . . . . 1 . . . 2 Processor 5 | . . 1 . . . . 1 2 1 . . . Hackware 7 | . . . . . . 1 3 . . . . 3 Protection 5 | . . 1 . . . . . . 1 1 . 2 Artifact . | . . . . . . . . . . . . . Weapon 29 | 2 2 6 5 1 . . 2 5 2 . . 4 Energy Gun . | . . . . . . . . . . . . . Energy Cannon 3 | . . 1 1 . . . 1 . . . . . Ballistic Gun 4 | 2 2 . . . . . . . . . . . Ballistic Cannon 2 | . . . . . . . 1 . . . . 1 Launcher 4 | . . . 2 1 . . . 1 . . . . Special Weapon 1 | . . . . . . . . . 1 . . . Impact Weapon 14 | . . 5 2 . . . . 4 . . . 3 Slashing Weapon 1 | . . . . . . . . . 1 . . . Piercing Weapon . | . . . . . . . . . . . . . Special Melee Weapon . | . . . . . . . . . . . . . Unidentified Prototypes 7 | . . 2 1 . . . 1 . . 2 . 1 Corrupted Parts 15 | . . . . . 1 2 3 . 4 . 4 1 System Corruption 88 | . . . . . 2 4 15 . 26 . 35 6 Parts Lost 56 | . . 3 3 4 . . 8 . 11 . . 27 Power 8 | . . 2 . . . . 1 . 3 . . 2 Propulsion 26 | . . . 2 3 . . 5 . 6 . . 10 Utility 14 | . . 1 1 1 . . 2 . 2 . . 7 Weapon 8 | . . . . . . . . . . . . 8 Highest Loss Streak 9 | . . 1 2 2 . . 4 . 5 . . 9 To Critical Strikes . | . . . . . . . . . . . . . Average Backups 22 | 4 14 19 24 23 23 25 22 23 23 25 24 21 Power 1 | . 1 1 2 2 2 1 1 1 1 1 1 . Propulsion 4 | 2 7 7 6 4 4 4 2 3 2 4 3 3 Utility 8 | . 4 5 7 6 7 9 11 12 12 13 13 13 Weapon 7 | . 1 6 8 10 10 9 7 5 6 6 6 4 Tool/Special . | . . . . . . . . . . . . . Unused Backups 38 | . 6 5 8 . . . . 2 5 2 . 10 Power 3 | . 1 . 1 . . . . 1 . . . . Propulsion 4 | . 3 . . . . . . 1 . . . . Utility 23 | . 1 2 6 . . . . . 3 2 . 9 Weapon 8 | . 1 3 1 . . . . . 2 . . 1 Tool/Special . | . . . . . . . . . . . . . Average Slot Usage (%) 97 | . 100 99 99 99 100 100 96 99 95 83 85 81 Engine 8 | . 14 10 11 11 11 11 6 5 2 . . 3 Treads 33 | . . 36 43 43 44 44 37 35 30 18 20 18 Leg 3 | . 27 7 . . . . . . . . . . Device 9 | . 14 6 9 11 11 11 5 10 8 5 5 8 Storage 9 | . 14 11 11 11 11 11 6 5 5 5 5 4 Processor 4 | . . . . . . . 2 12 17 17 17 12 Hackware 1 | . . . . . . . 9 3 . . . 4 Protection 1 | . . 4 1 . . . . . 1 5 5 4 Ballistic Gun 2 | . 28 1 . . . . . . . . . . Impact Weapon 19 | . . 20 19 19 22 22 25 20 21 20 22 17 Peak Build Rating 109 | 9 9 19 25 25 26 26 43 53 84 104 104 109 Average Rating 37 | 4 8 14 23 24 25 25 38 50 63 94 95 93 On Entrance 39 | . 9 9 19 25 24 26 24 43 52 80 104 92 Avg Prop Armor Cover (%) 17 | . . . . . . . . . . . . 17 Naked Turns . | . . . . . . . . . . . . . Heaviest Build 153 | 11 48 97 100 100 100 100 111 115 121 121 121 153 Greatest Support 220 | 20 40 80 80 80 80 80 120 120 186 220 220 201 Greatest Overweight (x) 3 | . 2 1 1 1 1 1 1 . 1 . . 3 Average Overweight (x) . | . . . 1 1 1 1 . . . . . . Largest Inventory Capacity 25 | 8 20 25 25 25 25 25 25 25 25 25 25 25 Average Capacity 23 | 6 14 21 25 25 25 25 25 25 25 25 25 22 Most Carried 25 | 8 20 25 25 25 25 25 25 25 25 25 25 25 Average Carried 22 | 4 14 19 24 23 23 24 22 24 24 24 24 21 Final Capacity 25 | 8 20 25 25 25 25 25 25 25 25 25 25 5 Final Carried 25 | 8 20 25 25 22 25 25 25 25 25 25 25 1 Class Distribution -------------------- 40% | Mutant 27% | Scavenger-Mutant 18% | Gladiator 7% | Scavenger-Gladiator 4% | Commander-Gladiator Dominant Class ---------------- Scavenger-Mutant | -10/Materials Mutant | -9/Materials Mutant | -9/Storage Mutant | -9/Garrison Mutant | -9/Recycling Scavenger-Mutant | -9/Scraptown Gladiator | -6/Factory Gladiator | -5/Factory Gladiator | -5/Extension Gladiator | -5/Cetus Scavenger-Gladiator | -5/Archives Scavenger-Gladiator | -4/Factory Resources | -11 -10 -9 -9 -9 -9 -9 -6 -5 -5 -5 -5 -4 ----------- Run | Yrd Mat Mat Sto Gar Rec Scr Fac Fac Ext Cet Arc Fac Matter Collected 3425 | 241 351 407 190 168 125 31 297 218 581 56 79 681 Remotely . | . . . . . . . . . . . . . Salvage Created 5830 | 20 376 776 624 366 462 . 664 390 1112 83 298 659 Parts 197 | 3 28 37 22 15 8 . 27 17 19 2 8 11 Haulers Intercepted 6 | . 2 2 2 . . . . . . . . . Recyclers Shooed 4 | . 2 . 1 . . . 1 . . . . . Parts Field Recycled . | . . . . . . . . . . . . . Retrieved Matter . | . . . . . . . . . . . . . Parts Self-Destructed . | . . . . . . . . . . . . . Prevented . | . . . . . . . . . . . . . Parts Restored . | . . . . . . . . . . . . . Kills | -11 -10 -9 -9 -9 -9 -9 -6 -5 -5 -5 -5 -4 ------- Run | Yrd Mat Mat Sto Gar Rec Scr Fac Fac Ext Cet Arc Fac Combat Hostiles Destroyed 114 | . 9 17 14 16 3 . 12 6 15 2 4 16 Melee 37 | . . 10 4 4 1 . 5 . 6 2 . 5 Guns 9 | . 9 . . . . . . . . . . . Cannons 2 | . . . . . . . . 1 . . . 1 AOE 34 | . . . 7 8 . . 3 3 4 . . 9 Classes Destroyed 15 | 1 3 3 2 . . . 3 . 1 . . 2 Worker 3 | . . . . . . . 3 . . . . . Builder 5 | . . . 1 . 2 . 1 . 1 . . . Tunneler 1 | 1 . . . . . . . . . . . . Hauler 6 | . 2 2 2 . . . . . . . . . Recycler 15 | . . . 3 . 4 . . 2 3 . . 3 Watcher 5 | . . 1 1 . . . . . 2 . . 1 Swarmer 27 | . 3 . 6 6 . . . 4 1 . . 7 Cutter 1 | . . . . . . . . . . . . 1 Grunt 42 | . 6 11 4 8 . . 3 2 8 . . . Brawler 1 | . . 1 . . . . . . . . . . Sentry 26 | . . 5 4 2 3 . 4 . 4 . 4 . Hunter 4 | . . . . . . . 1 . 1 . . 2 Programmer 9 | . . . . . . . 4 . . . . 5 Heavy 1 | . . . . . . . . . . . . 1 Behemoth 1 | . . . . . . . . . 1 . . . Cetus Guard 2 | . . . . . . . . . . 2 . . Best Kill Streak 9 | 1 3 3 9 6 3 . 3 3 5 2 3 5 Combat Bots Only 7 | . 3 3 7 6 1 . 3 3 3 2 3 5 Max Kills in Single Turn 3 | 1 1 1 3 2 1 . 2 3 2 1 1 2 Gunslinging . | . . . . . . . . . . . . . Exploded 3 | . . . 2 2 . . 2 3 2 . . 2 Melee 1 | . . 1 1 1 1 . 1 . 1 1 . 1 Uniques/NPCs Destroyed . | . . . . . . . . . . . . . Combat | -11 -10 -9 -9 -9 -9 -9 -6 -5 -5 -5 -5 -4 -------- Run | Yrd Mat Mat Sto Gar Rec Scr Fac Fac Ext Cet Arc Fac Hostile Shots Fired 1139 | . 42 67 87 75 4 . 228 9 117 26 65 419 Missed 365 | . 13 20 24 17 2 . 86 4 28 8 18 145 Hits 774 | . 29 47 63 58 2 . 142 5 89 18 47 274 Melee 14 | . . 5 . . . . . . . . . 9 Projectile 760 | . 29 42 63 58 2 . 142 5 89 18 47 265 AOE 1 | . . . . . . . . . . . . 1 Critical Strikes 32 | . 2 1 2 3 . . 1 . 6 2 . 15 Actively Blocked 6 | . . . . . . . . . . . . 6 Part Disruptions 5 | . . . . . . . . . . . . 5 Damage Taken 13950 | . 390 663 859 765 31 . 1668 89 2188 473 1270 5554 Core 1795 | . 42 70 70 89 14 . 149 18 115 37 30 1161 Absorbed by Shields 249 | . . . . . . . . . . . . 249 Core Remaining (%) 76 | 100 83 . . . . 39 82 . . . 80 . Volleys Fired 119 | 3 47 3 7 11 . . 6 14 8 . . 20 Largest 2 | 2 2 2 1 2 . . 2 1 1 . . 1 Hottest 85 | 40 40 40 56 60 . . 85 85 49 . . 49 Shots Fired 180 | 6 92 6 7 17 . . 9 14 8 . . 21 Gun 104 | 6 92 6 . . . . . . . . . . Cannon 20 | . . . 1 . . . 5 13 . . . 1 Launcher 56 | . . . 6 17 . . 4 1 8 . . 20 Special . | . . . . . . . . . . . . . Kinetic 105 | 6 92 6 . . . . . . . . . 1 Thermal 18 | . . . . . . . 5 13 . . . . Explosive 56 | . . . 6 17 . . 4 1 8 . . 20 Electromagnetic 1 | . . . 1 . . . . . . . . . Robot Hit Streak 18 | 4 18 4 3 1 . . 1 2 2 . . 2 Robot Miss Streak 3 | 1 2 3 . 1 . . 1 3 1 . . 2 Penetration Max . | . . . . . . . . . . . . . Secondary Targets 2 | . 2 . . . . . . . . . . . Max Gunslinging Chain 1 | . 1 . . . . . . . . . . . Shots Hit Robots 389 | 5 69 50 36 34 11 . 39 6 58 10 31 40 Core Hits 153 | 2 24 13 16 18 2 . 18 7 21 2 1 29 Critical Kills 9 | . 1 3 . 2 . . 1 . . 2 . . Critical Parts Destroyed 46 | . . 8 3 3 1 . 9 1 6 . 6 9 Critical Strikes 65 | . 1 13 3 5 1 . 11 1 10 2 9 9 Destroy 1 | . 1 . . . . . . . . . . . Smash 62 | . . 13 3 5 1 . 11 1 8 2 9 9 Sever 2 | . . . . . . . . . 2 . . . Melee Attacks 433 | . . 65 47 60 11 . 57 5 69 10 32 77 Impact 422 | . . 65 47 60 11 . 57 5 59 10 32 76 Slashing 11 | . . . . . . . . . 10 . . 1 Piercing . | . . . . . . . . . . . . . Sneak Attacks 29 | . . 4 6 . 9 . 5 2 2 . . 1 Combat Hostiles 3 | . . 2 . . . . 1 . . . . . Follow-up Attacks 80 | . . 6 7 7 1 . 13 . 20 3 14 9 Damage Inflicted 18847 | 38 566 1882 2063 2262 818 . 1799 684 3205 347 1178 4005 Guns 623 | 38 563 22 . . . . . . . . . . Cannons 154 | . . . . . . . 30 124 . . . . Explosions 5708 | . . . 540 1085 . . 288 324 956 . . 2515 Melee 12342 | . . 1860 1523 1177 818 . 1481 236 2249 347 1178 1473 Ramming 20 | . 3 . . . . . . . . . . 17 Kinetic 623 | 38 563 22 . . . . . . . . . . Thermal 154 | . . . . . . . 30 124 . . . . Explosive 5484 | . . . 540 1085 . . 288 324 956 . . 2291 Electromagnetic 224 | . . . . . . . . . . . . 224 Impact 11869 | . . 1860 1523 1177 818 . 1481 236 1776 347 1178 1473 Slashing 473 | . . . . . . . . . 473 . . . Piercing . | . . . . . . . . . . . . . Highest Corruption 62 | . . . . . 3 3 12 1 27 27 62 23 Average Corruption 6 | . . . . . 2 2 7 1 1 27 29 8 Corruption Purged 9 | . . . . . . . 5 . . . . 4 Corruption Blocked . | . . . . . . . . . . . . . Effects 110 | . . . . . 12 . 41 . 19 8 11 19 Message Errors 24 | . . . . . 3 . 8 . 3 3 4 3 Matter Fused 24 | . . . . . 3 . 5 . 6 2 4 4 Heat Flow Errors 16 | . . . . . 1 . 7 . 4 1 . 3 Energy Discharges 20 | . . . . . 2 . 9 . 3 . 2 4 Parts Rejected 1 | . . . . . . . . . . 1 . . Data Loss (minor) 15 | . . . . . 3 . 8 . 2 . . 2 Data Loss (major) 2 | . . . . . . . 1 . . 1 . . Misfires 2 | . . . . . . . 1 . . . . 1 Alerts 3 | . . . . . . . 2 . 1 . . . Misdirections 3 | . . . . . . . . . . . 1 2 Overload Shots . | . . . . . . . . . . . . . Overflow Damage 3374 | . . 479 317 146 361 . 536 55 436 . 220 824 Projectiles 32 | . . . . . . . . 2 . . . 30 Explosions 302 | . . . 21 44 . . . 9 67 . . 161 Melee 3040 | . . 479 296 102 361 . 536 44 369 . 220 633 Knockbacks 36 | . . 8 1 1 4 . 3 1 6 1 . 11 Impact 34 | . . 8 1 1 3 . 3 1 6 1 . 10 Kinetic . | . . . . . . . . . . . . . Secondary 2 | . . . . . 1 . . . . . . 1 Self-Inflicted Damage 401 | . . . . 89 . . 58 . 34 . . 220 Shots 9 | . . . . 2 . . 2 . 1 . . 4 Rammed 4 | . . . . . . . . . . . . 4 Targets Rammed 5 | . 1 . . . . . . . . . . 4 Kicked 1 | . 1 . . . . . . . . . . . Crushed . | . . . . . . . . . . . . . Highest Temperature 268 | . 27 5 8 23 268 . 238 50 256 251 . 263 Average Temperature 74 | . 11 5 5 15 136 . 87 20 108 134 . 129 Received Heat Transfer 2445 | . 219 231 231 261 . . 312 9 657 54 243 228 Siege Activations . | . . . . . . . . . . . . . Martial Activations . | . . . . . . . . . . . . . Shielding Activations . | . . . . . . . . . . . . . Robots Disrupted . | . . . . . . . . . . . . . Combat Hostiles . | . . . . . . . . . . . . . Robots Corrupted 44 | . . 8 6 4 5 . 5 2 7 . 4 3 Combat Hostiles 32 | . . 7 3 4 2 . 4 2 5 . 4 1 Parts Fried 48 | . . 5 3 9 8 . 6 1 6 . 1 9 Impact Corruptions 114 | . . 14 13 8 13 . 18 2 14 . 7 25 Robots Melted . | . . . . . . . . . . . . . Combat Hostiles . | . . . . . . . . . . . . . Parts Melted . | . . . . . . . . . . . . . Heat Transferred 185 | . . . . . . . 37 148 . . . . Parts Sabotaged . | . . . . . . . . . . . . . Parts Stolen . | . . . . . . . . . . . . . Parts Stripped . | . . . . . . . . . . . . . Power Chain Reactions . | . . . . . . . . . . . . . Alert | -11 -10 -9 -9 -9 -9 -9 -6 -5 -5 -5 -5 -4 ------- Run | Yrd Mat Mat Sto Gar Rec Scr Fac Fac Ext Cet Arc Fac Maximum Alert Level 2 | . . 1 1 2 1 . . . 1 . . 1 Low Security (%) 86 | 100 100 95 82 29 85 . 100 100 85 100 100 83 Level 1 8 | . . 4 17 11 14 . . . 14 . . 16 Level 2 4 | . . . . 59 . . . . . . . . Level 3 . | . . . . . . . . . . . . . Level 4 . | . . . . . . . . . . . . . Level 5 . | . . . . . . . . . . . . . High Security . | . . . . . . . . . . . . . Max Security . | . . . . . . . . . . . . . Peak Influence 650 | 5 70 211 262 650 292 . 128 160 272 163 74 358 Initial 292 | . . 7 66 31 292 . . 6 5 151 34 4 Average 102 | . 11 126 113 404 66 . 40 53 132 120 36 65 Influence Increases 5067 | 5 252 582 512 659 103 . 478 243 1157 114 80 882 Destroy 0b10 Robot/C 2620 | . 180 340 280 320 60 . 240 120 600 80 80 320 Destroy 0b10 Robot/NC 190 | 5 10 15 35 5 30 . 20 10 40 . . 20 Destroy Leader 514 | . 44 106 76 10 . . 100 20 76 . . 82 Allied During Kill 248 | . . . . . . . . . 237 11 . . Trap Triggered on 0b10 20 | . . . . . . . 20 . . . . . Successful Hack 125 | . 18 11 17 . 13 . 16 . 36 . . 14 Disable Machine 315 | . . . 60 75 . . 45 60 45 15 . 15 Anti-Garrison Action 150 | . . . . 150 . . . . . . . . Destroy Structure 540 | . . 5 29 54 . . 22 18 108 8 . 296 Lose Combat Pursuer 345 | . . 105 15 45 . . 15 15 15 . . 135 Influence Decreases 4709 | 5 234 442 622 57 753 . 465 244 899 299 151 538 Entered New Map 672 | . . 11 92 17 358 . . 7 7 119 51 10 Time Decay 3165 | 5 234 401 490 . 395 . 385 217 520 100 100 318 Lost Part 500 | . . 30 30 40 . . 80 . 110 . . 210 Lost Ally 372 | . . . 10 . . . . 20 262 80 . . Squads Dispatched 26 | . 1 2 1 . . . 4 4 5 . . 9 Investigation 8 | . . 1 1 . . . 1 1 3 . . 1 Extermination 6 | . . . . . . . 3 1 . . . 2 Reinforcement 10 | . 1 1 . . . . . 2 2 . . 4 Assault 2 | . . . . . . . . . . . . 2 Garrison . | . . . . . . . . . . . . . Intercept . | . . . . . . . . . . . . . Searches Triggered . | . . . . . . . . . . . . . Construction Impeded 4 | . . . . . . . . 1 2 . . 1 Haulers Reinforced . | . . . . . . . . . . . . . Active Scanning Responses . | . . . . . . . . . . . . . Cargo Convoy Interrupts . | . . . . . . . . . . . . . Stealth | -11 -10 -9 -9 -9 -9 -9 -6 -5 -5 -5 -5 -4 --------- Run | Yrd Mat Mat Sto Gar Rec Scr Fac Fac Ext Cet Arc Fac Distress Signals 9 | . . 3 2 . . . 1 . 1 1 . 1 Communications Jammed . | . . . . . . . . . . . . . Distress Signals . | . . . . . . . . . . . . . Times Spotted 200 | . 21 30 18 17 1 . 13 9 39 5 4 43 Peak Tracking Total 17 | . 4 4 6 4 1 . 4 4 5 5 3 17 Tactical Retreats 15 | . . 5 1 1 . . 1 1 1 . . 5 Traps | -11 -10 -9 -9 -9 -9 -9 -6 -5 -5 -5 -5 -4 ------- Run | Yrd Mat Mat Sto Gar Rec Scr Fac Fac Ext Cet Arc Fac Traps Triggered 12 | . 1 . 2 5 . . 1 . 1 . . 2 Indirectly . | . . . . . . . . . . . . . Trap Hack Attempts . | . . . . . . . . . . . . . Triggered . | . . . . . . . . . . . . . Disarmed 1 | . 1 . . . . . . . . . . . Reprogrammed 9 | . . . . . . . 9 . . . . . Reused 2 | . . . . . . . 2 . . . . . Traps Extracted . | . . . . . . . . . . . . . Installed . | . . . . . . . . . . . . . Triggered 2 | . . . . . . . 2 . . . . . Machines | -11 -10 -9 -9 -9 -9 -9 -6 -5 -5 -5 -5 -4 ---------- Run | Yrd Mat Mat Sto Gar Rec Scr Fac Fac Ext Cet Arc Fac Machines Disabled 24 | . . . 4 7 . . 3 4 4 1 . 1 Max in Single Turn 3 | . . . 1 2 . . 2 3 1 1 . 1 Garrison Access 1 | . . . . . . . . . . . . 1 Garrison Relay 2 | . . . . 2 . . . . . . . . Energy Cycler 1 | . . . . . . . . . 1 . . . Machines Repaired . | . . . . . . . . . . . . . Machines Dismantled 2 | . . . . . . . . . 1 1 . . Machines Sabotaged . | . . . . . . . . . . . . . Overloaded Fab Kills . | . . . . . . . . . . . . . Hacking | -11 -10 -9 -9 -9 -9 -9 -6 -5 -5 -5 -5 -4 --------- Run | Yrd Mat Mat Sto Gar Rec Scr Fac Fac Ext Cet Arc Fac Machines Accessed 42 | . 4 4 6 1 5 . 5 3 10 . . 4 Terminals 35 | . 4 3 5 1 5 . 4 1 10 . . 2 Fabricators 3 | . . . . . . . 1 1 . . . 1 Repair Stations . | . . . . . . . . . . . . . Recycling Units . | . . . . . . . . . . . . . Scanalyzers 2 | . . 1 . . . . . . . . . 1 Garrison Access 2 | . . . 1 . . . . 1 . . . . Total Hacks 117 | . 10 19 12 3 14 . 21 7 20 . . 11 Successful 51 | . 5 11 6 . 4 . 12 2 8 . . 3 Failed 65 | . 5 7 6 3 10 . 9 5 12 . . 8 Catastrophic 16 | . 1 2 1 1 2 . 2 3 3 . . 1 Database Lockouts 1 | . . 1 . . . . . . . . . . Manual 24 | . 3 3 3 . 7 . 1 2 4 . . 1 Terminals 89 | . 10 9 11 3 14 . 13 3 20 . . 6 Fabricators 14 | . . . . . . . 8 3 . . . 3 Repair Stations . | . . . . . . . . . . . . . Recycling Units . | . . . . . . . . . . . . . Scanalyzers 12 | . . 10 . . . . . . . . . 2 Garrison Access 2 | . . . 1 . . . . 1 . . . . Terminal Hacks 28 | . 5 2 4 . 2 . 5 1 8 . . 1 Part Schematic 5 | . . . . . 2 . 2 . 1 . . . Robot Analysis 1 | . . . 1 . . . . . . . . . Prototype ID Bank 1 | . 1 . . . . . . . . . . . Open Door 6 | . . . 1 . . . . . 5 . . . Branch Access Points 1 | . . 1 . . . . . . . . . . Alert Level 1 | . . . . . . . . . 1 . . . Locate Traps 2 | . . . 1 . . . 1 . . . . . Disarm Traps 1 | . 1 . . . . . . . . . . . Reprogram Traps 2 | . . . . . . . 2 . . . . . Maintenance Status 1 | . . . 1 . . . . . . . . . Hauler Manifests 1 | . 1 . . . . . . . . . . . Registered Components 4 | . 1 1 . . . . . . 1 . . 1 Zone Layout 2 | . 1 . . . . . . 1 . . . . Fabricator Hacks 10 | . . . . . . . 7 1 . . . 2 Network Status 2 | . . . . . . . 1 . . . . 1 Load Schematic 5 | . . . . . . . 3 1 . . . 1 Build 3 | . . . . . . . 3 . . . . . Repair Station Hacks . | . . . . . . . . . . . . . Recycling Unit Hacks . | . . . . . . . . . . . . . Scanalyzer 9 | . . 9 . . . . . . . . . . Insert Component 4 | . . 4 . . . . . . . . . . Analyze 4 | . . 4 . . . . . . . . . . Retrieve Study 1 | . . 1 . . . . . . . . . . Garrison Access Hacks 1 | . . . 1 . . . . . . . . . Unlock Access 1 | . . . 1 . . . . . . . . . Unauthorized Hacks 3 | . . . 1 . 2 . . . . . . . Terminals 3 | . . . 1 . 2 . . . . . . . Botnet 3 | . . . 1 . 2 . . . . . . . Fabricators . | . . . . . . . . . . . . . Repair Stations . | . . . . . . . . . . . . . Recycling Units . | . . . . . . . . . . . . . Scanalyzers . | . . . . . . . . . . . . . Garrison Access . | . . . . . . . . . . . . . Data Cores Recovered . | . . . . . . . . . . . . . Used . | . . . . . . . . . . . . . Hacking Detections 36 | . 3 4 3 1 5 . 5 3 8 . . 4 Full Trace Events 12 | . . 2 1 1 4 . 1 1 1 . . 1 Feedback Events 2 | . . . . . 1 . . 1 . . . . Corruption 2 | . . . . . 1 . . 1 . . . . Feedback Blocked . | . . . . . . . . . . . . . Robot Schematics Acquired . | . . . . . . . . . . . . . Robots Built . | . . . . . . . . . . . . . Authchips . | . . . . . . . . . . . . . Time . | . . . . . . . . . . . . . Total Robot Build Rating . | . . . . . . . . . . . . . Part Schematics Acquired 9 | . . 4 . . 2 . 2 . 1 . . . Parts Built 5 | . . . . . . . 5 . . . . . Authchips 3 | . . . . . . . 3 . . . . . Time 108 | . . . . . . . 108 . . . . . Total Part Build Rating 11 | . . . . . . . 11 . . . . . Part Studies Acquired 1 | . . 1 . . . . . . . . . . Parts Repaired . | . . . . . . . . . . . . . Time . | . . . . . . . . . . . . . Parts Recycled . | . . . . . . . . . . . . . Recycled Matter . | . . . . . . . . . . . . . Retrieved Matter . | . . . . . . . . . . . . . Retrieved Components . | . . . . . . . . . . . . . Parts Scanalyzed 4 | . . 4 . . . . . . . . . . Part Schematics Acquired 4 | . . 4 . . . . . . . . . . Parts Damaged . | . . . . . . . . . . . . . Bothacking | -11 -10 -9 -9 -9 -9 -9 -6 -5 -5 -5 -5 -4 ------------ Run | Yrd Mat Mat Sto Gar Rec Scr Fac Fac Ext Cet Arc Fac Used RIF Installer . | . . . . . . . . . . . . . Robots Hacked . | . . . . . . . . . . . . . Non-combat . | . . . . . . . . . . . . . Combat . | . . . . . . . . . . . . . Robot Hacks Applied . | . . . . . . . . . . . . . Relay Couplers Released 16 | . . . . 9 . . 4 . . . . 3 Machine Destruction 12 | . . . . 9 . . . . . . . 3 Programmers 4 | . . . . . . . 4 . . . . . Fabnet Peak Effective % . | . . . . . . . . . . . . . Robots Rewired 14 | . . . . . . . . . 14 . . . Allies Hacked . | . . . . . . . . . . . . . Hacks Repelled . | . . . . . . . . . . . . . Allies | -11 -10 -9 -9 -9 -9 -9 -6 -5 -5 -5 -5 -4 -------- Run | Yrd Mat Mat Sto Gar Rec Scr Fac Fac Ext Cet Arc Fac Total Allies 21 | . . . . . . . . . 21 . . . Largest Group 12 | . . . . . . . . . 12 4 . . Highest-Rated Group 324 | . . . . . . . . . 324 129 . . Highest-Rated Ally 39 | . . . . . . . . . 39 39 . . Initial Warlord ECA Mod 4 | . . . . . 4 4 1 . . . . . Total Orders 14 | . . . 5 . . . 5 1 . . . 3 EXPLORE 14 | . . . 5 . . . 5 1 . . . 3 Ally Attacks 147 | . . . . . . . . . 120 27 . . Total Damage 2833 | . . . . . . . . . 2423 410 . . Kills 22 | . . . . . . . . . 20 2 . . Allies Corrupted 2 | . . . . . . . 2 . . . . . Allies Melted . | . . . . . . . . . . . . . Intel | -11 -10 -9 -9 -9 -9 -9 -6 -5 -5 -5 -5 -4 ------- Run | Yrd Mat Mat Sto Gar Rec Scr Fac Fac Ext Cet Arc Fac Active Infowar (turns) 4954 | 11 1563 676 . . . . . 814 1205 24 . 661 Sensors 2704 | . . . . . . . . 814 1205 24 . 661 Terrain 268 | 11 257 . . . . . . . . . . . Seismic 1982 | . 1306 676 . . . . . . . . . . Robot Analysis Total 1 | . . . 1 . . . . . . . . . Derelict Logs Recovered . | . . . . . . . . . . . . . Drone Launches 21 | . . . 8 . . . 7 2 . . . 4 Drone Recoveries 12 | . . . 6 . . . 5 . . . . 1 Exploration | -11 -10 -9 -9 -9 -9 -9 -6 -5 -5 -5 -5 -4 ------------- Run | Yrd Mat Mat Sto Gar Rec Scr Fac Fac Ext Cet Arc Fac Turns Passed 15617 | 93 1563 1174 1288 1035 1689 2654 1675 815 2024 213 218 1176 Spaces Moved 6375 | 63 661 411 364 349 688 1103 640 335 1023 103 97 538 Core 65 | 14 . . . . . . . . . . . 51 Treads 5473 | . 9 350 364 349 688 1103 640 335 1023 103 97 412 Legs 762 | 49 652 61 . . . . . . . . . . Wheels . | . . . . . . . . . . . . . Hover 75 | . . . . . . . . . . . . 75 Flight . | . . . . . . . . . . . . . Fastest Speed 50 | 50 120 160 240 240 240 240 160 160 160 160 160 50 Average Speed 195 | 104 187 181 240 240 240 240 174 160 160 160 160 143 Slowest Speed 400 | 120 320 240 240 240 240 240 240 160 240 160 160 400 Overloaded Moves . | . . . . . . . . . . . . . Propulsion Burnouts . | . . . . . . . . . . . . . Robots Hopped . | . . . . . . . . . . . . . Potential Cave-ins 2 | . . . . . . . . 2 . . . . Cave-ins Triggered . | . . . . . . . . . . . . . Exploration Rate (%) 51 | 5 80 42 65 41 95 57 13 12 86 66 81 21 Regions Visited 12 Branch Regions 6 Pre-discovered Areas . | . . . . . . . . . . . . . Known Exits Taken 6 | . . 1 1 . . . . 1 1 1 1 . Unknown Exits Taken 5 | 1 1 . . . 1 1 1 . . . . . Scrap Searched 7 | . . . . . . 7 . . . . . . Spaces Dug 57 | . . 5 . 6 . . 16 5 2 . . 23 Terrain Destroyed 354 | . . 5 33 28 . . 23 10 82 . . 173 Melee 48 | . . 5 . 6 . . 12 . 2 . . 23 Projectile 13 | . . . . . . . 4 8 . . . 1 AOE 293 | . . . 33 22 . . 7 2 80 . . 149 Terrain Rammed . | . . . . . . . . . . . . . Walls Destroyed . | . . . . . . . . . . . . . Machines Disabled . | . . . . . . . . . . . . . Actions | -11 -10 -9 -9 -9 -9 -9 -6 -5 -5 -5 -5 -4 --------- Run | Yrd Mat Mat Sto Gar Rec Scr Fac Fac Ext Cet Arc Fac Total 8779 | 82 916 724 701 439 709 1110 1113 595 1316 132 130 812 Wait 1331 | 1 142 182 250 16 5 . 375 208 30 . . 122 Move 6364 | 62 660 410 364 348 687 1102 639 334 1022 102 96 538 Hop . | . . . . . . . . . . . . . Pick Up 150 | 9 27 25 14 1 3 2 23 8 19 2 4 13 Fast Attach 29 | 6 . 2 1 . 2 . 1 2 4 3 . 8 Attach 72 | 1 . 11 2 4 . . 18 5 8 . 2 21 Detach 4 | . . . . . . . . . 1 . . 3 Swap 125 | . 16 15 12 5 . 4 8 7 30 3 7 18 Drop 116 | . 23 20 12 . 2 2 6 13 14 6 3 15 Fire 119 | 3 47 3 7 11 . . 6 14 8 . . 20 Melee 306 | . . 56 38 48 10 . 37 4 39 7 18 49 Ram 5 | . . . . . . . . . . . . 5 Kick 1 | . 1 . . . . . . . . . . . Crush . | . . . . . . . . . . . . . Escape Stasis 6 | . . . . 6 . . . . . . . . Rewire 129 | . . . . . . . . . 129 . . . Trap . | . . . . . . . . . . . . . Miscellaneous 22 | . . . 1 . . . . . 12 9 . . Route ------- -11/Scrapyard -10/Materials (discovered 5 exits: *Mat x2 / [*Min x2] / [*Sub]) -9/Materials (discovered 4 exits: [*Mat] / *Min x2 / *Sto) -9/Storage -9/Garrison -9/Recycling (discovered 2 exits: [*Fac] / [*Scr]) -9/Scraptown -6/Factory -5/Factory -5/Extension (discovered 2 exits: *Fac / *Cet) -5/Cetus -5/Archives (discovered 2 exits: *Fac / *Hub) -4/Factory History --------- Turn | Location | Event 9 | -11/Scrapyard | Discovered new exit (range 15) 94 | -11/Scrapyard | Entered Materials 287 | -10/Materials | Discovered new exit (range 10) 316 | -10/Materials | Build established: Mutant 387 | -10/Materials | Discovered new exit (range 10) 778 | -10/Materials | Discovered new exit (range 9) 889 | -10/Materials | Build established: Scavenger-Mutant 1022 | -10/Materials | Discovered new exit (range 8) 1148 | -10/Materials | Discovered new exit (range 9) 1657 | -10/Materials | Entered another Materials area 1657 | -9/Materials | Evolved 2 slots: Propulsion x2 1827 | -9/Materials | Discovered new exit (range 8) 2063 | -9/Materials | Central database locked down 2140 | -9/Materials | Build established: Mutant 2380 | -9/Materials | Identified exit to Mines 2380 | -9/Materials | Identified exit to Storage 2585 | -9/Materials | Discovered new exit (range 15) 2831 | -9/Materials | Entered Storage 3131 | -9/Storage | Destroyed 7 combat bots 4119 | -9/Storage | Identified exit to Garrison 4119 | -9/Storage | Entered Garrison 4227 | -9/Garrison | Triggered checkpoint 4371 | -9/Garrison | Core integrity fell below 50% 4420 | -9/Garrison | Garrison Relay disabled 4497 | -9/Garrison | Triggered checkpoint 4519 | -9/Garrison | Triggered checkpoint 4527 | -9/Garrison | Triggered checkpoint 4564 | -9/Garrison | Triggered checkpoint 4817 | -9/Garrison | Garrison Relay disabled 4866 | -9/Garrison | Discovered new exit (range 10) 5154 | -9/Garrison | Entered Recycling 5465 | -9/Recycling | Scanned before Scraplab entrance 6036 | -9/Recycling | Discovered new exit (range 15) 6819 | -9/Recycling | Entered Scraplab 6838 | -9/Recycling | Discovered new exit (range 3) 6843 | -9/Recycling | Entered Scraptown 6843 | -9/Scraptown | System corruption cleaned by C-Scrubber 6850 | -9/Scraptown | System corruption cleaned by C-Scrubber 7154 | -9/Scraptown | Build established: Scavenger-Mutant 7198 | -9/Scraptown | Visited Symbiants 7217 | -9/Scraptown | Heard Great Nut preacher, LISTEN AND RECITE! 7272 | -9/Scraptown | Visited SPCMW 7303 | -9/Scraptown | Visited Red Mages 7409 | -9/Scraptown | Visited Fellowship of the Rings 7500 | -9/Scraptown | Discovered new exit (range 9) 8263 | -9/Scraptown | Visited Awakened 8359 | -9/Scraptown | Visited Bundlers 8527 | -9/Scraptown | Visited Cave Peace 9495 | -9/Scraptown | System corruption cleaned by C-Scrubber 9497 | -9/Scraptown | Entered Factory 9497 | -6/Factory | Evolved 6 slots: Propulsion x2, Utility x2, Weapon x2 9511 | -6/Factory | Discovered new exit (range 3) 9764 | -6/Factory | Spotted B-75 Beast 9906 | -6/Factory | Lost 3 parts (1p1n1u) 9995 | -6/Factory | System corruption reached 10% 10045 | -6/Factory | Lost 4 parts (4n) 10243 | -6/Factory | Build established: Mutant 10336 | -6/Factory | Fabricated Lgt. Treads (x2) 10810 | -6/Factory | Build established: Gladiator 10957 | -6/Factory | Fabricated Lgt. Treads (x2) 11023 | -6/Factory | Fabricated Micro-nuke Launcher (x1) 11172 | -6/Factory | Entered another Factory area 11172 | -5/Factory | Evolved 2 slots: Utility x2 11854 | -5/Factory | Discovered new exit (range 36) 11986 | -5/Factory | Identified exit to Extension 11987 | -5/Factory | Entered Extension 11998 | -5/Extension | Disrupted transfer network 12180 | -5/Extension | Rescued a captive Derelict 12224 | -5/Extension | Rescued a captive Derelict 12373 | -5/Extension | Build established: Machinist-Gladiator 12444 | -5/Extension | Rescued a captive Derelict 12690 | -5/Extension | Build established: Commander-Gladiator 12891 | -5/Extension | Spotted B-75 Beast 12910 | -5/Extension | Spotted B-75 Beast 12958 | -5/Extension | Allies destroyed B-75 Beast 12975 | -5/Extension | Destroyed B-75 Beast 12979 | -5/Extension | Lost 5 parts (2p2n1u) 12994 | -5/Extension | Lost 11 allies 13237 | -5/Extension | Build established: Gladiator 13351 | -5/Extension | Rescued a captive Derelict 13352 | -5/Extension | Rescued a captive Derelict 13419 | -5/Extension | Energy Cycler disabled 13419 | -5/Extension | Rescued a captive Derelict 13422 | -5/Extension | Rescued a captive Derelict 13429 | -5/Extension | Rescued a captive Derelict 13911 | -5/Extension | Discovered new exit (range 10) 13912 | -5/Extension | Discovered new exit (range 6) 13939 | -5/Extension | Extracted ID and sensor layout for unrecognized location from A7's data core 13971 | -5/Extension | Identified exit to Cetus 13975 | -5/Extension | Identified exit to Factory 13978 | -5/Extension | System corruption reached 10% 14011 | -5/Extension | Entered Cetus 14011 | -5/Cetus | Accompanied by 4 allies 14032 | -5/Cetus | Spotted Cetus Guard 14032 | -5/Cetus | Spotted Cetus Guard 14034 | -5/Cetus | Spotted Cetus Guard 14035 | -5/Cetus | Spotted Cetus Guard 14067 | -5/Cetus | Destroyed Cetus Guard 14076 | -5/Cetus | Destroyed Cetus Guard 14100 | -5/Cetus | Lost 4 allies 14200 | -5/Cetus | Discovered new exit (range 15) 14222 | -5/Cetus | Identified exit to Archives 14224 | -5/Cetus | Entered Archives 14351 | -5/Archives | System corruption reached 30% 14359 | -5/Archives | Discovered new exit (range 15) 14382 | -5/Archives | Identified exit to Hub_04(d) 14415 | -5/Archives | Discovered exit to Factory (range 13) 14442 | -5/Archives | Entered Factory 14442 | -4/Factory | Evolved 2 slots: Power x1, Utility x1 14622 | -4/Factory | Build established: Scavenger-Gladiator 15380 | -4/Factory | Lost 5 parts (2p1n1u1w) 15380 | -4/Factory | System corruption reached 10% 15433 | -4/Factory | Lost 5 parts (3n2u) 15480 | -4/Factory | Lost 3 parts (1n1u1w) 15514 | -4/Factory | Core integrity fell below 50% 15546 | -4/Factory | Lost 9 parts (3n3u3w) 15554 | -4/Factory | Core integrity fell below 20% 15613 | -4/Factory | Lost 3 parts (2n1w) 15618 | -4/Factory | Destroyed by S-27 Virus with Autogun Last Messages --------------- 15579_ TF Node disabled. 15579_ Adv. Sensor Array tumbles out of TF Node. 15581_ P-70 Sage resets S-27 Virus, system corruption cleaned. 15581_ K-01 Serf collects debris. 15581_ S-27 Virus misfires. 15582_ Cmb. Airjet destroyed. 15583_ Acquired Adv. Sensor Array. 15584_ K-01 Serf collects debris. 15590_ System corrupted: FCS attempts to trigger Lgt. Antimatter Cannon. 15590_ System corrupted: Lgt. Antimatter Cannon misfires. 15590_ S-27 Virus IFF system glitched. 15591_ P-70 Sage resets S-27 Virus, system corruption cleaned. 15603_ P-70 Sage resets P-70 Sage, system corruption cleaned. 15607_ FV2D,UVOIBPH:EKEE:3H, 15612_ K-01 Serf cleans the Power Conduit. Map ----- +----------------------------------------------------+ | # #??# #?????# """ #???????####?? #?# | | # #??# #?????# #???###??????????# | | # #??# #?????## #+## #????? # | | # #??# ######## #????# | | ########??# T ? | | ??????????## ##???# | | ???????????# """"" " #+####### #????# !# | | ???????????# """"""" # ???????#+###????###???? | | ???????????# """""" # ??????????????????????? | | +#?????????# """"""" # ?????????????????????? | | #?????????# # ?????????????????????? | | #?????????# # ????????????????????? | | ########### # ???????????????/????? | | ######## ### ???????????????????? | | ##### #??????# #?? ???????????????????? | | #???# ########+############???????????????? | | #???# x p p ##??????????????? | | +#####/##??##########sk Y t #??????????????? | | #???????????# " " " #???????????????? | | ! #???????????# " " " #???????????????? | | #???????????# " " " #???????????????? | | #???????????# " " " #???????????????? | | #########???????????# !! " " " #???????????????? | | ????????????????????# !! " " " #???????????????? | | ????????????????????# ! " " " #???????????????? | | ????????????????????# @ " " " #???????????????? | | ????????????????????# = " " " #???????????????? | | ????????????????????#= k #????????????!??? | | ????????????????????#######/######???????????????? | | ??????????????????????????? ????????????????????? | | ??????????????????????????? ???????????????????? | | ??????????????????????????? ??????????????????? | | ??????????????????????????? ?????????????????? | | ???????????????????????????? ????????????????? | | ???????????????????????????? """"????????????????? | | ???????????????????????????? """""???????????????? | | ?????????????????????????????"???????????????????? | | ?????????????????????????????????????????????????? | | ?????????????????????????????????????????????????? | | ?????????????????????????????????????????????????? | | ?????????????????????????????????????????????????? | | ?????????????????????????????????????????????????? | | ?????????????????????????????????????????????????? | | ?????????????????????????????????????????????????? | | ?????????????????????????????????????????????????? | | ?????????????????????????????????????????????????? | | ?????????????????????????????????????????????????? | | ?????????????????????????????????????????????????? | | ?????????????????????????????????????????????????? | | ?????????????????????????????????????????????????? | +----------------------------------------------------+ Best States ------------- Heat Dissipation 43 Energy Generation 34 Energy Capacity 880 Matter Stores 300 Matter Capacity 300 Sight Range 16 Robot Scan Range 16 Terrain Scan Range 16 Terrain Scan Density 10 Armor Coverage 450 Melee Speed Boost 20 Evasion (%) 55 Melee Accuracy 12 Recoil Reduction 6 Offensive Hacking 14 Authchip Count 3 Item Schematics ----------------- Huge Storage Unit | -9/Materials | Scanalyzed Lgt. Treads | -9/Materials | Scanalyzed Imp. Ion Engine | -9/Materials | Scanalyzed Imp. Heat Sink | -9/Materials | Scanalyzed Imp. Light Armor Plating | -9/Recycling | Hacked Plasma Cutter | -9/Recycling | Hacked Micro-nuke Launcher | -6/Factory | Hacked Ionic Axe | -6/Factory | Hacked Arm. Treads | -5/Extension | Hacked Robot Schematics ------------------ None Fabricated ------------ Lgt. Treads | x2 | -6/Factory | Authchip Lgt. Treads | x2 | -6/Factory | Authchip Micro-nuke Launcher | x1 | -6/Factory | Authchip Repaired ---------- Nothing Studied --------- Maul | -9/Materials | Hacked Alien Tech Used ----------------- None Achievements -------------- A Problem For Future Me Botjacking Civilization 2243 Construction Begets Destruction DATA ERROR: Steam Global Achievement% Ew, Corruption Explosive Keycard For Emergencies Only Ghost 'Em Hammer Time Heavy Suspicion I Have A Map? I Laugh At Your Crits Into The Breach Item+ Official Business Organ Harvest Overwhelming Plot Armor Resistances Are Futile There's More Where That Came From You May Approach The Wall Challenges ------------ None Game ------ Seed WeldingBottomlessClaws Manual? 0 Play Time 03:03:20 Cumulative 160.6 hours Start 2025.10.22 @ 19:18:15 End 2025.10.23 @ 11:11:44 Sessions 5 Manual Loads 0 Difficulty Rogue Special Mode None Game No. 58 Rogue 58 Adventurer 0 Explorer 0 Win Type - Total 2 Types 2/0/0/0/0/0/0/0/0/0 Lore% 58 Gallery% 56 Achievement% 33 Wizard Run 0 Options --------- Layout 1 ASCII 0 Keyboard 0 Movement Mouse Keybinds 0 Fullscreen 1 Font 32/Smallcaps Map View 50x35 Zoom Use 0% Tactical HUD 1 Map Filters NONE Filters NONE Steam 1 RUN: de8eb918-c354-479b-932c-269885863328